Cogmind - Beta 14 @@@ ROGUE MODE // 2024.09.12 @ 19:57:55 Player: Dull Result: Destroyed by S-27 Virus with Autogun Performance ------------- Evolutions (4) 2000 Regions Visited (9) 1800 Robots Destroyed (130) 650 Value Destroyed (4061) 4061 Prototype IDs (15) 300 Alien Tech Used (0) 0 Bonus (358) 358 TOTAL SCORE: 9169 Bonus ------- High Alert Combat Kills 96 Aligned with FarCom 300 Friendly Fire -38 Cogmind --------- Core Integrity 0/850 Matter 16/300 Energy 100/100 System Corruption 7% Temperature Cool (0) Movement Core (50) Location -6/Factory Parts ------- > --- POWER (2) -------- (None) > --- PROPULSION (4) --- (None) > --- UTILITY (5) ------ Hacking Suite Hacking Suite > --- WEAPON (4) ------- (None) > --- INVENTORY (5) ---- Advanced Visual Processing Unit Improved Terrain Scanner Melee Analysis Suite Advanced ECM Suite Peak State ------------ > --- POWER ------------ Deuterium Engine Light Nuclear Core > --- PROPULSION ------- Airjet Aerolev Unit Gravmag System Combat Airjet > --- UTILITY ---------- Large Storage Unit Gravity Neutralizer Gravity Neutralizer Hacking Suite Hacking Suite > --- WEAPON ----------- Flak Gun Heavy Machine Gun Missile Launcher Power Sword > --- INVENTORY -------- Light Nuclear Core Improved Fusion Compressor Energy Well Machine Analyzer Advanced Visual Processing Unit Improved Terrain Scanner Advanced Terrain Scan Processor Weapon Cycler Weapon Cycler Advanced ECM Suite Hacking Suite Hacking Suite Hacking Suite Hacking Suite Rocket Launcher [Rating: 63] Favorites ----------- Power Ion Engine Engine Ion Engine Power Core Light Nuclear Core Propulsion Light Treads Treads Light Treads Leg Aluminum Leg Wheel Wheel Hover Unit Aerolev Unit Utility Huge Storage Unit Device Improved Terrain Scanner Storage Huge Storage Unit Processor Armor Integrity Analyzer Hackware Hacking Suite Protection Light Armor Plating Weapon Light Assault Rifle Energy Gun Pulse Rifle Energy Cannon Beam Cannon Ballistic Gun Light Assault Rifle Ballistic Cannon AWS/Autocannon Launcher Grenade Launcher Impact Weapon Great Maul Slashing Weapon Scythe Build | -11 -10 -10 -10 -9 -8 -7 -6 -6 -6 ------- Run | Yrd Mat Min Exi Min Mat Fac Fac Was Fac Slots Evolved 8 | . . . . . 4 2 2 . . Power 1 | . . . . . . . 1 . . Propulsion 2 | . . . . . 1 1 . . . Utility 3 | . . . . . 2 . 1 . . Weapon 2 | . . . . . 1 1 . . . Parts Attached 123 | 3 20 9 3 4 29 24 19 1 11 Power 16 | . 4 4 . 1 2 1 3 . 1 Engine 13 | . 4 4 . 1 2 . 2 . . Core 3 | . . . . . . 1 1 . 1 Reactor . | . . . . . . . . . . Propulsion 31 | 2 5 . . . 11 7 5 . 1 Treads 15 | 2 5 . . . 7 1 . . . Leg 1 | . . . . . . 1 . . . Wheel 6 | . . . . . 3 3 . . . Hover 9 | . . . . . 1 2 5 . 1 Flight . | . . . . . . . . . . Utility 35 | 1 1 1 3 . 8 10 7 . 4 Device 12 | 1 . . 1 . 4 2 4 . . Storage 3 | . 1 . . . . 1 1 . . Processor 2 | . . . 1 . 1 . . . . Hackware 6 | . . . . . . . 2 . 4 Protection 12 | . . 1 1 . 3 7 . . . Artifact . | . . . . . . . . . . Weapon 41 | . 10 4 . 3 8 6 4 1 5 Energy Gun 4 | . 1 1 . . 2 . . . . Energy Cannon 3 | . 1 1 . 1 . . . . . Ballistic Gun 12 | . 4 . . 1 4 1 2 . . Ballistic Cannon 2 | . . . . . 2 . . . . Launcher 17 | . 4 2 . 1 . 4 1 . 5 Special Weapon . | . . . . . . . . . . Impact Weapon 1 | . . . . . . . 1 . . Slashing Weapon 2 | . . . . . . 1 . 1 . Piercing Weapon . | . . . . . . . . . . Special Melee Weapon . | . . . . . . . . . . Unidentified Prototypes 8 | . . . 2 . 4 1 1 . . Corrupted Parts 1 | . . . . . 1 . . . . System Corruption 10 | . . . . . 10 . . . . Parts Lost 28 | . 3 2 . . 6 2 . . 15 Power 4 | . 1 1 . . . . . . 2 Propulsion 10 | . 1 . . . 4 . . . 5 Utility 10 | . . 1 . . 2 1 . . 6 Weapon 4 | . 1 . . . . 1 . . 2 Highest Loss Streak 8 | . 2 2 . . 2 1 . . 8 To Critical Strikes . | . . . . . . . . . . Average Slot Usage (%) 90 | . 99 100 100 100 76 79 85 97 72 Engine 11 | . 13 14 14 14 9 6 5 6 4 Treads 22 | . 27 28 28 28 20 13 . . . Wheel 2 | . . . . . 5 6 1 . . Hover 1 | . . . . . . . 23 26 17 Device 4 | . 14 . . . 7 . 19 13 9 Storage 11 | . 14 14 14 14 9 7 6 6 4 Processor 1 | . . . . . 5 2 . . . Protection 9 | . . 14 13 14 8 11 1 . . Energy Gun 1 | . . 2 . . 2 5 . . . Energy Cannon 4 | . 2 7 14 13 . . . . . Ballistic Gun 11 | . 23 14 14 14 2 4 4 13 5 Ballistic Cannon 1 | . . . . . 6 . . . . Launcher 2 | . . 4 . . . 11 2 4 4 Slashing Weapon 1 | . . . . . . 5 6 6 4 Peak Build Rating 63 | 9 12 12 15 15 59 47 62 62 63 Average Rating 25 | 7 10 9 11 14 46 42 56 60 45 On Entrance 27 | 6 9 12 10 13 15 42 43 60 60 Naked Turns . | . . . . . . . . . . Heaviest Build 170 | 11 90 92 90 94 170 128 109 49 54 Greatest Support 62 | 40 40 40 40 40 62 62 60 49 49 Greatest Overweight (x) 15 | . 2 2 2 2 15 5 4 . 2 Average Overweight (x) 2 | . 1 2 2 2 4 2 . . . Largest Inventory Capacity 25 | 8 25 25 25 25 25 25 25 15 15 Average Capacity 23 | 8 21 25 25 25 25 25 22 15 12 Most Carried 25 | 7 25 25 25 25 25 25 25 15 15 Average Carried 22 | 5 16 23 23 24 24 24 21 14 12 Final Capacity 25 | 8 25 25 25 25 25 25 15 15 5 Final Carried 25 | 5 25 23 25 25 25 25 15 15 4 Class Distribution -------------------- 53% | Mutant 14% | Scavenger-Mutant 13% | Scavenger-Skirmisher 8% | Skirmisher 3% | Tank Dominant Class ---------------- Scavenger-Mutant | -10/Materials Mutant | -10/Mines Mutant | -10/Exiles Mutant | -9/Mines Scavenger-Skirmisher | -8/Materials Scavenger-Skirmisher | -7/Factory Mutant | -6/Factory Hacker-Mutant | -6/Waste Hacker-Mutant | -6/Factory Resources | -11 -10 -10 -10 -9 -8 -7 -6 -6 -6 ----------- Run | Yrd Mat Min Exi Min Mat Fac Fac Was Fac Matter Collected 2174 | 242 470 279 30 48 408 604 . . 93 Remotely . | . . . . . . . . . . Salvage Created 3849 | 121 643 142 . 86 1362 1260 . . 235 Parts 232 | 8 54 4 . 2 74 81 . . 9 Haulers Intercepted 7 | . 2 . . . 1 3 . . 1 Recyclers Shooed 3 | . 1 . . . 1 1 . . . Parts Field Recycled . | . . . . . . . . . . Retrieved Matter . | . . . . . . . . . . Parts Self-Destructed . | . . . . . . . . . . Prevented . | . . . . . . . . . . Kills | -11 -10 -10 -10 -9 -8 -7 -6 -6 -6 ------- Run | Yrd Mat Min Exi Min Mat Fac Fac Was Fac Combat Hostiles Destroyed 87 | . 14 13 . 3 32 17 . . 8 Melee 5 | . . . . . . 5 . . . Guns 25 | . 13 4 . 1 7 . . . . Cannons 26 | . . 1 . . 25 . . . . AOE 31 | . 1 8 . 2 . 12 . . 8 Classes Destroyed 18 | 3 5 1 . 1 6 1 . . 1 Worker 9 | 1 2 . . . 2 4 . . . Builder 13 | . 1 . . . 1 11 . . . Tunneler 5 | 2 . . . . 2 1 . . . Hauler 7 | . 2 . . . 1 3 . . 1 Recycler 8 | 1 . . . . 2 5 . . . Mechanic 1 | . . . . . . . . . 1 Operator 2 | . . . . . 1 1 . . . Watcher 7 | . 2 . . . 5 . . . . Swarmer 10 | . 3 3 . . . . . . 4 Grunt 43 | . 11 1 . 2 18 11 . . . Brawler 1 | . . . . 1 . . . . . Duelist 1 | . . . . . 1 . . . . Sentry 8 | . . . . . 6 1 . . 1 Specialist 4 | . . . . . 4 . . . . Hunter 5 | . . . . . 2 1 . . 2 Programmer 5 | . . . . . . 4 . . 1 Heavy 1 | . . . . . 1 . . . . Assembled 9 | . . 9 . . . . . . . Best Kill Streak 11 | 2 3 3 . 3 5 11 . . 8 Combat Bots Only 7 | . 3 3 . 3 4 4 . . 7 Max Kills in Single Turn 4 | 1 2 2 . 1 1 4 . . 4 Gunslinging . | . . . . . . . . . . Exploded 4 | . 1 2 . 1 . 2 . . 4 Melee 1 | . . . . . . 1 . . . Uniques/NPCs Destroyed . | . . . . . . . . . . Combat | -11 -10 -10 -10 -9 -8 -7 -6 -6 -6 -------- Run | Yrd Mat Min Exi Min Mat Fac Fac Was Fac Hostile Shots Fired 520 | . 95 18 . 8 152 95 . . 152 Missed 177 | . 27 3 . 3 45 38 . . 61 Damage Taken 5606 | . 848 328 . 52 1678 876 . . 1824 Core 1385 | . 139 60 . . 261 68 . . 857 Absorbed by Shields . | . . . . . . . . . . Ignored by Resistances 56 | . . . . . 4 52 . . . Regen/Repaired (Parts) 311 | . 234 . . . . . 77 . . Core Remaining (%) 65 | 100 . . . 20 52 90 . . . Volleys Fired 184 | 16 82 21 . 7 32 19 . . 7 Largest 3 | 2 2 2 . 2 3 3 . . 2 Hottest 153 | 40 50 85 . 83 153 153 . . 72 Shots Fired 420 | 32 144 40 . 14 140 42 . . 8 Gun 261 | 32 139 20 . 7 49 14 . . . Cannon 102 | . . 7 . 4 91 . . . . Launcher 57 | . 5 13 . 3 . 28 . . 8 Special . | . . . . . . . . . . Kinetic 330 | 32 139 19 . 7 126 7 . . . Thermal 33 | . . 8 . 4 14 7 . . . Explosive 57 | . 5 13 . 3 . 28 . . 8 Electromagnetic . | . . . . . . . . . . Robot Hit Streak 21 | 5 14 18 . 7 21 7 . . 1 Robot Miss Streak 7 | 2 4 2 . 1 3 7 . . 1 Penetration Max . | . . . . . . . . . . Secondary Targets 1 | . 1 . . . . . . . . Max Gunslinging Chain 1 | . 1 . . . . . . . . Autonomous 92 | . . . . . 92 . . . . Shots Hit Robots 311 | 20 94 19 . 11 112 49 . . 6 Core Hits 202 | 9 47 20 . 5 43 55 . . 23 Critical Kills . | . . . . . . . . . . Critical Parts Destroyed 1 | . . . . . 1 . . . . Critical Strikes 12 | . . 1 . . 9 2 . . . Burn 3 | . . 1 . . 2 . . . . Destroy 1 | . . . . . 1 . . . . Blast 6 | . . . . . 6 . . . . Sever 2 | . . . . . . 2 . . . Melee Attacks 44 | . . . . . . 34 2 . 8 Impact . | . . . . . . . . . . Slashing 44 | . . . . . . 34 2 . 8 Piercing . | . . . . . . . . . . Sneak Attacks 16 | . . . . . . 14 . . 2 Combat Hostiles . | . . . . . . . . . . Follow-up Attacks . | . . . . . . . . . . Damage Inflicted 14177 | 156 1063 686 . 400 6796 3269 . . 1807 Guns 1959 | 156 890 99 . 76 569 169 . . . Cannons 6297 | . . 71 . 52 6174 . . . . Explosions 4313 | . 171 513 . 220 . 1801 . . 1608 Melee 1498 | . . . . . . 1299 . . 199 Ramming 110 | . 2 3 . 52 53 . . . . Kinetic 7867 | 156 890 86 . 76 6574 85 . . . Thermal 1762 | . . 84 . 52 169 742 . . 715 Explosive 2940 | . 171 513 . 220 . 1143 . . 893 Electromagnetic . | . . . . . . . . . . Impact . | . . . . . . . . . . Slashing 1498 | . . . . . . 1299 . . 199 Piercing . | . . . . . . . . . . Highest Corruption 10 | . . . . . 10 4 4 4 7 Average Corruption 4 | . . . . . 10 3 4 4 5 Corruption Purged . | . . . . . . . . . . Corruption Blocked . | . . . . . . . . . . Effects 53 | . . . . . . 38 1 1 13 Message Errors 15 | . . . . . . 10 . 1 4 Matter Fused 11 | . . . . . . 7 . . 4 Heat Flow Errors 8 | . . . . . . 6 . . 2 Energy Discharges 6 | . . . . . . 4 1 . 1 Parts Rejected 1 | . . . . . . . . . 1 Parts Fused 1 | . . . . . . . . . 1 Data Loss (minor) 7 | . . . . . . 7 . . . Data Loss (major) 2 | . . . . . . 2 . . . Misfires 2 | . . . . . . 2 . . . Overload Shots . | . . . . . . . . . . Overflow Damage 1405 | . . 22 . . 857 461 . . 65 Projectiles 849 | . . . . . 849 . . . . Explosions 335 | . . 22 . . . 248 . . 65 Melee 221 | . . . . . 8 213 . . . Knockbacks 20 | . . . . . 20 . . . . Impact . | . . . . . . . . . . Kinetic 18 | . . . . . 18 . . . . Secondary 2 | . . . . . 2 . . . . Self-Inflicted Damage 179 | . . 108 . . . 71 . . . Shots 6 | . . 4 . . . 2 . . . Rammed 13 | . 1 1 . 7 4 . . . . Targets Rammed 13 | . 1 1 . 7 4 . . . . Kicked . | . . . . . . . . . . Crushed . | . . . . . . . . . . Highest Temperature 374 | . 27 179 . 170 311 374 . . 305 Average Temperature 83 | . 8 46 . 68 97 105 . . 101 Received Heat Transfer 2135 | . 483 71 . 30 630 318 . . 603 Effects 3 | . . . . . . 2 . . 1 Shutdowns 1 | . . . . . . 1 . . . Energy Bleed 1 | . . . . . . . . . 1 Short Circuit 1 | . . . . . . 1 . . . Siege Activations . | . . . . . . . . . . Robots Corrupted 1 | . . . . . 1 . . . . Combat Hostiles . | . . . . . . . . . . Parts Fried 1 | . . . . . 1 . . . . Impact Corruptions 4 | . . . . . 4 . . . . Robots Melted . | . . . . . . . . . . Combat Hostiles . | . . . . . . . . . . Parts Melted 3 | . . . . . 1 2 . . . Heat Transferred 1886 | . . 259 . 111 518 548 . . 450 Parts Sabotaged . | . . . . . . . . . . Parts Stolen . | . . . . . . . . . . Parts Stripped . | . . . . . . . . . . Power Chain Reactions . | . . . . . . . . . . Alert | -11 -10 -10 -10 -9 -8 -7 -6 -6 -6 ------- Run | Yrd Mat Min Exi Min Mat Fac Fac Was Fac Peak Influence 557 | 20 220 147 . 97 494 501 241 84 557 Initial 239 | . 13 15 . . . 163 239 84 58 Average 123 | 8 66 18 . 15 242 201 239 84 316 Maximum Alert Level 2 | . 1 . . . 2 2 1 . 2 Low Security (%) 75 | 100 94 100 . 100 46 58 . 100 27 Level 1 16 | . 5 . . . 31 31 100 . 29 Level 2 8 | . . . . . 22 9 . . 43 Level 3 . | . . . . . . . . . . Level 4 . | . . . . . . . . . . Level 5 . | . . . . . . . . . . High Security . | . . . . . . . . . . Max Security . | . . . . . . . . . . Squads Dispatched 28 | . 1 . . . 11 8 1 . 7 Investigation 11 | . 1 . . . 5 1 . . 4 Extermination 4 | . . . . . . 3 . . 1 Reinforcement 11 | . . . . . 6 4 1 . . Assault 1 | . . . . . . . . . 1 Garrison 1 | . . . . . . . . . 1 Intercept . | . . . . . . . . . . Searches Triggered . | . . . . . . . . . . Construction Impeded 3 | . . . . . 1 2 . . . Haulers Reinforced 1 | . . . . . . 1 . . . Active Scanning Responses . | . . . . . . . . . . Cargo Convoy Interrupts . | . . . . . . . . . . Stealth | -11 -10 -10 -10 -9 -8 -7 -6 -6 -6 --------- Run | Yrd Mat Min Exi Min Mat Fac Fac Was Fac Distress Signals 2 | . 1 . . . . 1 . . . Communications Jammed . | . . . . . . . . . . Distress Signals . | . . . . . . . . . . Times Spotted 143 | . 25 13 . 3 37 31 . 5 29 Peak Tracking Total 9 | . 3 3 . 3 3 3 . 5 9 Tactical Retreats 13 | . 2 1 . . 2 2 . . 6 Traps | -11 -10 -10 -10 -9 -8 -7 -6 -6 -6 ------- Run | Yrd Mat Min Exi Min Mat Fac Fac Was Fac Traps Triggered 5 | . 1 . . . 1 1 2 . . Indirectly . | . . . . . . . . . . Trap Hack Attempts . | . . . . . . . . . . Triggered . | . . . . . . . . . . Disarmed . | . . . . . . . . . . Reprogrammed . | . . . . . . . . . . Reused . | . . . . . . . . . . Traps Extracted . | . . . . . . . . . . Installed . | . . . . . . . . . . Triggered 2 | . . 2 . . . . . . . Machines | -11 -10 -10 -10 -9 -8 -7 -6 -6 -6 ---------- Run | Yrd Mat Min Exi Min Mat Fac Fac Was Fac Machines Disabled 14 | . . . . 1 . 10 . . 3 Max in Single Turn 5 | . . . . 1 . 5 . . 3 Garrison Access 1 | . . . . . . . . . 1 Machines Repaired . | . . . . . . . . . . Machines Dismantled . | . . . . . . . . . . Machines Sabotaged . | . . . . . . . . . . Overloaded Fab Kills . | . . . . . . . . . . Hacking | -11 -10 -10 -10 -9 -8 -7 -6 -6 -6 --------- Run | Yrd Mat Min Exi Min Mat Fac Fac Was Fac Machines Accessed 30 | . 9 . 1 . 6 7 2 . 5 Terminals 18 | . 6 . . . 6 3 1 . 2 Fabricators 4 | . . . . . . 2 . . 2 Repair Stations 3 | . 1 . . . . 1 1 . . Recycling Units 3 | . 2 . . . . . . . 1 Scanalyzers 1 | . . . . . . 1 . . . Garrison Access . | . . . . . . . . . . Total Hacks 79 | . 30 . 3 . 16 12 5 . 13 Successful 33 | . 14 . 3 . 4 4 3 . 5 Failed 46 | . 16 . . . 12 8 2 . 8 Catastrophic 8 | . . . . . 3 3 . . 2 Database Lockouts . | . . . . . . . . . . Manual 31 | . 15 . 1 . 8 2 . . 5 Terminals 45 | . 15 . . . 16 5 2 . 7 Fabricators 7 | . . . . . . 3 . . 4 Repair Stations 10 | . 6 . . . . 1 3 . . Recycling Units 11 | . 9 . . . . . . . 2 Scanalyzers 3 | . . . . . . 3 . . . Garrison Access . | . . . . . . . . . . Terminal Hacks 16 | . 6 . 3 . 4 1 1 . 1 Record 4 | . . . 3 . . . . . 1 Part Schematic 1 | . 1 . . . . . . . . Prototype ID Bank 4 | . 3 . . . 1 . . . . Level Access Points 1 | . . . . . . . 1 . . Branch Access Points 2 | . 1 . . . 1 . . . . Unreport Threat 1 | . . . . . 1 . . . . Locate Traps 1 | . 1 . . . . . . . . Recall Reinforcements 2 | . . . . . 1 1 . . . Fabricator Hacks 5 | . . . . . . 1 . . 4 Load Schematic 2 | . . . . . . . . . 2 Build 3 | . . . . . . 1 . . 2 Repair Station Hacks 6 | . 4 . . . . . 2 . . Scan Component 3 | . 2 . . . . . 1 . . Repair 3 | . 2 . . . . . 1 . . Recycling Unit Hacks . | . . . . . . . . . . Scanalyzer 2 | . . . . . . 2 . . . Insert Component 1 | . . . . . . 1 . . . Analyze 1 | . . . . . . 1 . . . Garrison Access Hacks . | . . . . . . . . . . Unauthorized Hacks 4 | . 4 . . . . . . . . Terminals . | . . . . . . . . . . Fabricators . | . . . . . . . . . . Repair Stations . | . . . . . . . . . . Recycling Units 4 | . 4 . . . . . . . . Reject 2 | . 2 . . . . . . . . Mask 2 | . 2 . . . . . . . . Scanalyzers . | . . . . . . . . . . Garrison Access . | . . . . . . . . . . Data Cores Recovered 1 | . . . . . 1 . . . . Used . | . . . . . . . . . . Hacking Detections 25 | . 7 . . . 5 6 2 . 5 Full Trace Events 9 | . 1 . . . 3 1 . . 4 Feedback Events . | . . . . . . . . . . Feedback Blocked . | . . . . . . . . . . Robot Schematics Acquired . | . . . . . . . . . . Robots Built 4 | . . . . . . 4 . . . Authchips . | . . . . . . . . . . Time 40 | . . . . . . 40 . . . Total Robot Build Rating 4 | . . . . . . 4 . . . Part Schematics Acquired 2 | . 1 . . . . 1 . . . Parts Built . | . . . . . . . . . . Authchips . | . . . . . . . . . . Time 142 | . . . . . . . . . 142 Total Part Build Rating . | . . . . . . . . . . Parts Repaired 3 | . 2 . . . . . 1 . . Time 102 | . 52 . . . . . 50 . . Parts Recycled . | . . . . . . . . . . Recycled Matter . | . . . . . . . . . . Retrieved Matter . | . . . . . . . . . . Retrieved Components . | . . . . . . . . . . Parts Scanalyzed 1 | . . . . . . 1 . . . Part Schematics Acquired 1 | . . . . . . 1 . . . Parts Damaged . | . . . . . . . . . . Bothacking | -11 -10 -10 -10 -9 -8 -7 -6 -6 -6 ------------ Run | Yrd Mat Min Exi Min Mat Fac Fac Was Fac Used RIF Installer . | . . . . . . . . . . Robots Hacked . | . . . . . . . . . . Non-combat . | . . . . . . . . . . Combat . | . . . . . . . . . . Robot Hacks Applied . | . . . . . . . . . . Relay Couplers Released 3 | . . . . . . . . . 3 Machine Destruction 3 | . . . . . . . . . 3 Fabnet Peak Effective % . | . . . . . . . . . . Robots Rewired . | . . . . . . . . . . Allies Hacked . | . . . . . . . . . . Hacks Repelled . | . . . . . . . . . . Allies | -11 -10 -10 -10 -9 -8 -7 -6 -6 -6 -------- Run | Yrd Mat Min Exi Min Mat Fac Fac Was Fac Total Allies 6 | . . 1 . . . 4 . 1 . Largest Group 4 | . . 1 . . . 4 . 1 . Highest-Rated Group 31 | . . 31 . . . 24 . 31 . Highest-Rated Ally 31 | . . 31 . . . 6 . 31 . Total Orders 1 | . . . . . . 1 . . . ROAM 1 | . . . . . . 1 . . . Ally Attacks 14 | . . 6 . . . . . 8 . Total Damage 189 | . . 65 . . . . . 124 . Kills . | . . . . . . . . . . Allies Corrupted . | . . . . . . . . . . Allies Melted . | . . . . . . . . . . Intel | -11 -10 -10 -10 -9 -8 -7 -6 -6 -6 ------- Run | Yrd Mat Min Exi Min Mat Fac Fac Was Fac Robot Analysis Total . | . . . . . . . . . . Derelict Logs Recovered 3 | . . 2 . 1 . . . . . Drone Launches . | . . . . . . . . . . Drone Recoveries . | . . . . . . . . . . Exploration | -11 -10 -10 -10 -9 -8 -7 -6 -6 -6 ------------- Run | Yrd Mat Min Exi Min Mat Fac Fac Was Fac Turns Passed 16453 | 112 2848 3659 812 2001 3601 2443 319 58 600 Spaces Moved 5510 | 49 912 830 252 599 900 998 188 107 675 Core 255 | . . . . . . . . . 255 Treads 3854 | 9 912 830 252 599 761 491 . . . Legs 40 | 40 . . . . . . . . . Wheels 658 | . . . . . 139 507 12 . . Hover 703 | . . . . . . . 176 107 420 Flight . | . . . . . . . . . . Fastest Speed 50 | 120 160 320 320 320 241 116 50 50 50 Average Speed 253 | 127 275 320 320 320 357 211 99 50 68 Slowest Speed 800 | 160 320 320 320 320 800 570 300 50 170 Overloaded Moves . | . . . . . . . . . . Propulsion Burnouts . | . . . . . . . . . . Robots Hopped . | . . . . . . . . . . Cave-ins Triggered . | . . . . . . . . . . Exploration Rate (%) 53 | 4 79 99 60 97 69 25 6 72 23 Regions Visited 9 Branch Regions 3 Pre-discovered Areas 3 | . . 2 1 . . . . . . Known Exits Taken 2 | . 1 . . . 1 . . . . Unknown Exits Taken 5 | 1 . 1 1 1 . 1 . . . Scrap Searched 3 | . . 1 . 2 . . . . . Spaces Dug 23 | . 13 . . . . 3 2 . 5 Terrain Destroyed 445 | . 30 93 . 16 15 220 2 . 69 Melee 10 | . . . . . . 3 2 . 5 Projectile 15 | . . . . . 15 . . . . AOE 420 | . 30 93 . 16 . 217 . . 64 Terrain Rammed . | . . . . . . . . . . Walls Destroyed . | . . . . . . . . . . Machines Disabled . | . . . . . . . . . . Actions | -11 -10 -10 -10 -9 -8 -7 -6 -6 -6 --------- Run | Yrd Mat Min Exi Min Mat Fac Fac Was Fac Total 7655 | 74 1121 1798 260 658 1261 1249 325 112 797 Wait 1554 | . 70 919 . 36 227 140 90 . 72 Move 5502 | 48 911 829 251 598 899 997 188 106 675 Hop . | . . . . . . . . . . Pick Up 100 | 3 26 8 2 2 34 12 6 1 6 Fast Attach 31 | 1 2 . 2 . 7 11 5 1 2 Attach 42 | . 4 2 1 . 11 8 10 . 6 Detach 12 | . 1 . . . 3 2 3 1 2 Swap 50 | 2 14 7 . 4 11 5 4 . 3 Drop 121 | 4 10 11 4 4 33 19 17 3 16 Fire 184 | 16 82 21 . 7 32 19 . . 7 Melee 44 | . . . . . . 34 2 . 8 Ram . | . . . . . . . . . . Kick . | . . . . . . . . . . Crush 13 | . 1 1 . 7 4 . . . . Escape Stasis 2 | . . . . . . 2 . . . Rewire . | . . . . . . . . . . Trap . | . . . . . . . . . . Miscellaneous . | . . . . . . . . . . Route ------- -11/Scrapyard -10/Materials (discovered 4 exits: [*Mat x2] / *Min x2) -10/Mines (discovered 4 exits: [*Mat x2] / *Exi / [*Sub]) -10/Exiles -9/Mines (discovered 2 exits: *Mat x2) -8/Materials (discovered 2 exits: *Fac x2) -7/Factory -6/Factory (discovered 4 exits: Fac x4) -6/Waste -6/Factory History --------- Turn | Location | Event 1 | -11/Scrapyard | Discovered new exit (range 3) 113 | -11/Scrapyard | Entered Materials 315 | -10/Materials | Build established: Mutant 429 | -10/Materials | Identified exit to Mines 452 | -10/Materials | Discovered new exit (range 7) 685 | -10/Materials | Build established: Scavenger-Mutant 1307 | -10/Materials | Discovered new exit (range 8) 2118 | -10/Materials | Core integrity fell below 50% 2152 | -10/Materials | Build established: Mutant 2816 | -10/Materials | Repaired Lgt. Treads 2844 | -10/Materials | Repaired Lgt. Treads 2961 | -10/Materials | Entered Mines 2966 | -10/Mines | Escorted by a lone wolf Derelict 2982 | -10/Mines | Met a Derelict bent on vengeance 2986 | -10/Mines | Learned location of Storage (-7) 3028 | -10/Mines | Learned location of 1 exit from Materials 3318 | -10/Mines | Deemed a non-threat by the Exiles lab entrance 3318 | -10/Mines | Discovered new exit (range 5) 3475 | -10/Mines | Learned location of Recycling (-7) 3492 | -10/Mines | Assembled infested the area 4671 | -10/Mines | Discovered new exit (range 8) 4728 | -10/Mines | Received a Rocket Launcher from a helpful Derelict 4999 | -10/Mines | Discovered new exit (range 6) 6293 | -10/Mines | Discovered new exit (range 10) 6620 | -10/Mines | Entered Exiles 6700 | -10/Exiles | Met 8R-AWN 6752 | -10/Exiles | Met EX-HEX 6844 | -10/Exiles | Met EX-BIN 6950 | -10/Exiles | Aligned with FarCom system 6953 | -10/Exiles | Given EX-Vault access code 7027 | -10/Exiles | Opened EX-Vault 7043 | -10/Exiles | Found Prototype Device 7044 | -10/Exiles | Identified Skeleton Box 7049 | -10/Exiles | Found Prototype Processor 7049 | -10/Exiles | Identified Modified TNC 7069 | -10/Exiles | Found Prototype Ballistic Cannon 7140 | -10/Exiles | Warned to stay clear of 0b10 Research branches 7224 | -10/Exiles | Met EX-DEC 7243 | -10/Exiles | Learned location of Zion (-6) 7393 | -10/Exiles | Discovered new exit (range 14) 7432 | -10/Exiles | Left Exiles lab with AWS/Autocannon 7432 | -10/Exiles | Entered Mines 7764 | -9/Mines | Learned Materials stockpile data 7812 | -9/Mines | Found a damaged Exp. Sensor Array with a note attached 7819 | -9/Mines | Found Prototype Device 7848 | -9/Mines | Discovered new exit (range 10) 8599 | -9/Mines | Found a hidden stash of uninstalled traps 8790 | -9/Mines | Discovered new exit (range 16) 9433 | -9/Mines | Entered Materials 9433 | -8/Materials | Evolved 4 slots: Propulsion x1, Utility x2, Weapon x1 9434 | -8/Materials | Identified exit to Factory 9479 | -8/Materials | Identified AWS/Autocannon 9491 | -8/Materials | Identified Exp. Sensor Array 9781 | -8/Materials | Build established: Skirmisher 11026 | -8/Materials | Build established: Scavenger-Skirmisher 12058 | -8/Materials | Discovered exit to Factory (range 14) 12058 | -8/Materials | AWS/Autocannon suddenly broke down 12364 | -8/Materials | Build established: Scavenger-Mutant 13032 | -8/Materials | System corruption reached 10% 13034 | -8/Materials | Entered Factory 13034 | -7/Factory | Evolved 2 slots: Propulsion x1, Weapon x1 13157 | -7/Factory | Build established: Scavenger-Skirmisher 14120 | -7/Factory | Fabricated K-01 Serf (x4) 14274 | -7/Factory | Discovered new exit (range 12) 14454 | -7/Factory | Build established: Mutant 15477 | -7/Factory | Entered another Factory area 15477 | -6/Factory | Evolved 2 slots: Power x1, Utility x1 15684 | -6/Factory | Repaired Cmb. Airjet 15750 | -6/Factory | Identified exit to Factory 15796 | -6/Factory | Sucked down chute 15796 | -6/Factory | Entered Waste 15797 | -6/Waste | Met a frightened Derelict 15805 | -6/Waste | Spotted C-40 Crusher 15813 | -6/Waste | Spotted C-40 Crusher 15827 | -6/Waste | Spotted C-40 Crusher 15833 | -6/Waste | Spotted C-40 Crusher 15835 | -6/Waste | Spotted C-40 Crusher 15837 | -6/Waste | Spotted C-40 Crusher 15849 | -6/Waste | Discovered new exit (range 11) 15854 | -6/Waste | Entered Factory 16015 | -6/Factory | Garrison activated, responded to threat 16043 | -6/Factory | Destroyed 7 combat bots 16252 | -6/Factory | Lost 3 parts (2n1w) 16338 | -6/Factory | Lost 8 parts (2p2n3u1w) 16366 | -6/Factory | Spotted B-75 Beast 16374 | -6/Factory | Core integrity fell below 50% 16397 | -6/Factory | Core integrity fell below 20% 16420 | -6/Factory | Lost 3 parts (1n2u) 16454 | -6/Factory | Destroyed by S-27 Virus with Autogun Last Messages --------------- 16386_ Hacking Suite destroyed. 16389_ Gravmag System destroyed. 16405_ K-01 Serf cleans the Fusion Modulator. 16432_ Connecting with Fabricator... >>Load(Cmb. Airjet) Uploading Cmb. Airjet schematic... Loaded successfully: Cmb. Airjet Rating: 5 Time: 47 Initiate build sequence. >>Build Building Cmb. Airjet... ETC: 47 16432_ ALERT: Unauthorized use of fabrication network. Dispatching investigation squad. 16438_ ALERT: Security rotation in progress. 16440_ 8%HZRHC4K:T&A